bitfinex-derivatives/quotes_ETHF0:USTF0_20240817
["timestamp","ask_amount","ask_price","bid_price","bid_amount"]
[1723883044636,0.01446564,2598.5,2598.4,7.25258621]
[1723883046740,0.00577212,2598.7,2598.4,11.10138621]
[1723883047039,0.00577212,2598.7,2598.4,12.28852261]
[1723883047243,0.00577212,2598.7,2598.5,1.11]
[1723883047744,0.01047143,2598.7,2598.6,0.3592]
[1723883048332,0.11337714,2598.7,2598.6,0.3592]
[1723883052049,0.11337714,2598.7,2598.6,1.4692]
[1723883052449,1.52313963,2598.7,2598.6,1.4692]
[1723883052752,0.11337026,2598.7,2598.6,1.4692]
[1723883053458,1.62603846,2598.7,2598.6,1.4692]
[1723883054452,0.11337026,2598.7,2598.6,1.4692]
[1723883055443,2.1273804,2598.7,2598.6,1.11]
[1723883057553,2.1273804,2598.7,2598.4,1.92387]
[1723883057554,14.1831804,2598.7,2598.3,1.51154461]
[1723883057755,4.72105837,2598.4,2598.2,1.51154461]
[1723883057957,0.10289883,2598.3,2598.2,1.51154461]
[1723883058253,1.6161572,2598.3,2598.2,3.4358497]
[1723883058460,1.6161572,2598.3,2598.2,1.92430731]
[1723883058654,1.6161572,2598.3,2598.2,3.43585192]
[1723883059055,1.6161572,2598.3,2598.2,1.92430731]
[1723883059258,1.6161572,2598.3,2598.2,3.43585192]
[1723883059259,0.10289883,2598.3,2598.2,3.43585192]
[1723883059656,1.6161572,2598.3,2598.2,3.43585192]
[1723883060253,1.6161572,2598.3,2598.2,1.92430731]
[1723883060460,0.10289883,2598.3,2598.2,1.11]
[1723883060857,2.11690897,2598.3,2598.2,1.11]
[1723883061057,0.10289883,2598.3,2598.2,1.11]
[1723883061362,0.10289883,2598.3,2598.2,3.03402]
[1723883061661,1.61624202,2598.3,2598.2,4.95829487]
[1723883062753,1.61624202,2598.3,2598.2,4.95829313]
[1723883063150,1.61624202,2598.3,2598.2,3.03402]
[1723883063351,1.61624202,2598.3,2598.2,4.95830597]
[1723883063551,1.61624202,2598.3,2598.2,3.03402]
[1723883064353,1.61624202,2598.3,2598.2,4.95830547]
[1723883064759,1.61624202,2598.3,2598.2,4.95831518]
[1723883065352,1.61624202,2598.3,2598.2,3.03402]
[1723883066466,1.61624489,2598.3,2598.2,4.95832591]
[1723883067163,1.61624489,2598.3,2598.2,3.03402]
[1723883070460,0.10292356,2598.3,2598.1,2.27407]
[1723883070659,7.14569014,2598.4,2598.2,1.11]
[1723883070660,5.22181014,2598.4,2598.2,1.11]
[1723883070857,0.10294043,2598.3,2598.2,5.20822519]
[1723883071052,0.10294042,2598.3,2598.2,5.20822519]
[1723883071256,3.95174042,2598.3,2598.2,1.11]
[1723883071558,7.88970151,2598.3,2598.2,1.11]
[1723883071860,1.9241,2598.1,2598.0,0.3532]
[1723883072165,1.92417,2598.0,2597.7,4.49042461]
[1723883072368,1.61579069,2597.9,2597.7,2.97888]
[1723883072570,0.10294137,2597.8,2597.7,7.27607414]
[1723883072866,0.10294137,2597.8,2597.7,4.90347862]
[1723883073463,0.10294137,2597.8,2597.7,2.97888]
[1723883073968,0.10294137,2597.8,2597.7,1.0545]
[1723883073969,2.02726137,2597.8,2597.7,1.0545]
[1723883074268,2.02726137,2597.8,2597.7,2.1645]
[1723883076972,0.10294137,2597.8,2597.7,2.1645]
[1723883077174,5.07334932,2598.1,2597.7,2.1645]
[1723883077368,2.02710114,2598.0,2597.8,1.92431]
[1723883077672,0.10293114,2597.9,2597.8,1.92432]
[1723883080269,1.92415,2598.1,2597.8,1.92432]
[1723883080572,1.92415,2598.1,2598.0,1.11]
[1723883080765,0.10292983,2598.1,2598.0,1.11]
[1723883080969,3.43686932,2598.2,2598.0,1.11]
[1723883081163,1.51284932,2598.2,2598.0,1.11]
[1723883081369,1.51284932,2598.2,2598.1,0.729]
[1723883081568,3.53979541,2598.2,2598.1,1.0715]
[1723883081769,7.38859541,2598.2,2598.1,1.0715]
[1723883082469,5.46457541,2598.2,2598.1,1.0715]
[1723883082666,1.61577541,2598.2,2598.1,1.0715]
[1723883083570,5.46457541,2598.2,2598.1,1.0715]
[1723883084773,7.38859541,2598.2,2598.1,1.0715]
[1723883085174,7.3885929,2598.2,2598.1,1.0715]
[1723883085780,7.38859742,2598.2,2598.1,1.0715]
[1723883086972,7.38859742,2598.2,2598.1,1.0606]
[1723883089484,7.38859362,2598.2,2598.1,1.0606]
[1723883092470,3.53979362,2598.2,2598.1,1.0606]
[1723883093484,2.0269443,2598.2,2598.1,1.0606]
[1723883093682,3.53756933,2598.2,2598.1,1.0606]
[1723883093878,2.0269443,2598.2,2598.1,0.7181]
[1723883094077,4.04095444,2598.2,2598.1,0.7181]
[1723883094682,16.09755444,2598.2,2597.6,1.92443]
[1723883094883,3.43484595,2598.0,2597.7,1.11]
[1723883095187,0.1029243,2597.9,2597.7,1.4518]
[1723883095386,2.0271743,2597.9,2597.7,0.3418]
[1723883095582,0.1029243,2597.8,2597.7,1.4518]
[1723883098082,1.92439,2597.7,2597.6,0.3692]
[1723883098395,2.0273143,2597.7,2597.6,0.3692]
[1723883098695,3.53792025,2597.7,2597.6,0.3692]
[1723883099679,3.53792199,2597.7,2597.6,0.3692]
[1723883100290,3.53792223,2597.7,2597.6,0.3692]
[1723883101193,3.53792223,2597.7,2597.6,1.4792]
[1723883101790,1.61353223,2597.7,2597.6,1.4792]
[1723883102295,0.10292628,2597.7,2597.6,1.4792]
[1723883103097,2.02731628,2597.7,2597.6,1.4792]
[1723883103593,3.53792223,2597.7,2597.6,1.4792]
[1723883104188,2.02731628,2597.7,2597.6,1.4792]
[1723883105696,0.10292628,2597.7,2597.6,1.4792]
[1723883106892,2.02731628,2597.7,2597.6,1.4792]
[1723883107097,0.10292628,2597.7,2597.6,1.4792]
[1723883107295,2.02731628,2597.7,2597.6,1.4792]
[1723883109294,0.10292628,2597.7,2597.6,3.40367]
[1723883109601,1.51060595,2598.0,2597.8,1.92431]
[1723883109795,1.51060595,2598.0,2597.9,0.7478]
[1723883110001,1.61353993,2598.0,2597.9,0.7478]
[1723883110501,0.10293398,2598.0,2597.9,0.7478]
[1723883110697,2.02710398,2598.0,2597.9,0.7478]
[1723883110911,2.11694412,2598.0,2597.9,0.7478]
[1723883111307,2.01401014,2598.0,2597.9,0.7478]
[1723883111597,2.11694327,2598.0,2597.9,0.7478]
[1723883112096,2.1169419,2598.0,2597.9,0.7478]
[1723883113601,0.10293176,2598.0,2597.9,0.7478]
[1723883114101,2.1169419,2598.0,2597.9,0.7478]
[1723883114696,0.10293176,2598.0,2597.9,0.7478]
[1723883115398,2.1169419,2598.0,2597.9,0.7478]
[1723883115698,2.01401014,2598.0,2597.9,0.7478]
[1723883115894,2.11694597,2598.0,2597.9,0.7478]
[1723883120000,2.11694506,2598.0,2597.9,0.7478]
[1723883121395,2.11694628,2598.0,2597.9,0.7478]
[1723883123409,2.11694745,2598.0,2597.9,0.7478]
[1723883124302,2.01401014,2598.0,2597.9,0.7478]
[1723883124501,2.11694481,2598.0,2597.9,0.7478]
[1723883124711,3.93813014,2598.1,2597.9,0.7478]
[1723883124902,3.93813014,2598.1,2598.0,0.3521]
[1723883125102,4.04106096,2598.1,2598.0,0.3521]
[1723883125895,2.02705082,2598.1,2598.0,0.3521]
[1723883126905,4.04384779,2598.1,2598.0,0.3521]
[1723883127513,2.02705082,2598.1,2598.0,0.3521]
[1723883128016,2.1197612,2598.1,2598.0,0.3521]
[1723883128510,3.94092038,2598.1,2598.0,0.3521]
[1723883128809,4.04385552,2598.1,2598.0,0.3521]
[1723883130812,4.04385552,2598.1,2598.0,0.3412]
[1723883132215,2.02702514,2598.1,2598.0,0.3412]
[1723883132908,2.02702321,2598.1,2598.0,0.3412]
[1723883133811,4.54453589,2598.1,2598.0,0.3412]
[1723883134011,8.86233589,2598.1,2598.0,0.3412]
[1723883134217,1.92417,2598.0,2597.9,0.3713]
[1723883134518,4.5483879,2598.0,2597.9,0.3713]
[1723883135709,2.02710321,2598.0,2597.9,0.3713]
[1723883136917,1.92417,2598.0,2597.9,0.3713]
[1723883137117,2.02705566,2598.0,2597.9,0.3713]
[1723883137623,2.02705566,2598.0,2597.7,2.46763645]
[1723883137624,2.39805707,2598.0,2597.7,2.46763645]
[1723883137920,1.51227459,2597.8,2597.7,2.83823645]
[1723883138124,1.61516166,2597.8,2597.7,2.83823645]
[1723883138314,1.61516166,2597.8,2597.7,7.30638675]
[1723883139213,1.61516166,2597.8,2597.7,11.15598675]
[1723883139717,0.10288707,2597.8,2597.7,7.30638675]
[1723883140012,1.61530175,2597.8,2597.7,7.30638675]
[1723883140218,1.61530175,2597.8,2597.7,11.15598675]
[1723883140518,1.61530175,2597.8,2597.7,7.30638675]
[1723883140712,1.61530175,2597.8,2597.7,11.15598675]
[1723883141223,1.61530367,2597.8,2597.7,7.30638675]
[1723883141419,0.10288899,2597.8,2597.7,7.30638675]
[1723883141921,0.10288899,2597.8,2597.7,11.15598675]
[1723883142320,0.10288899,2597.8,2597.7,7.30638675]
[1723883142522,0.10288899,2597.8,2597.7,11.15598675]
[1723883142712,0.10288899,2597.8,2597.7,7.30638675]
[1723883142914,0.10288899,2597.8,2597.7,11.15598675]
[1723883143115,0.10288899,2597.8,2597.7,7.30638675]
[1723883143316,0.10288899,2597.8,2597.7,10.1473503]
[1723883143619,0.10288899,2597.8,2597.7,11.15598675]
[1723883143825,0.10288899,2597.8,2597.7,7.30638675]
[1723883144411,0.10288899,2597.8,2597.7,11.15598675]
[1723883144617,1.61553728,2597.8,2597.7,13.08037675]
[1723883144818,0.10288899,2597.8,2597.7,15.50787334]
[1723883145420,1.51264829,2597.9,2597.8,1.92432]
[1723883145710,1.6155347,2597.9,2597.8,3.84890843]
[1723883145913,0.10288641,2597.9,2597.8,21.2606354]
[1723883146128,2.01636612,2598.6,2598.5,1.9238]
[1723883146314,2.01636612,2598.6,2598.5,3.0338]
[1723883146315,0.1028857,2598.6,2598.5,3.0338]
[1723883146515,0.1028857,2598.6,2598.5,5.96634563]
[1723883146813,0.01047143,2598.7,2598.6,1.92372]
[1723883147123,0.01047143,2598.7,2598.6,2.27182]
[1723883147326,0.01047143,2598.7,2598.6,0.3481]
[1723883147515,0.01047143,2598.7,2598.6,1.35658776]
[1723883147717,0.01047143,2598.7,2598.6,0.3481]
[1723883147921,0.01047143,2598.7,2598.6,2.27182]
[1723883148116,0.01047143,2598.7,2598.6,3.28030776]
[1723883148318,0.01047143,2598.7,2598.6,2.27182]
[1723883148517,0.01047143,2598.7,2598.6,0.3481]
[1723883148719,0.01047143,2598.7,2598.6,2.27182]
[1723883148919,0.01047143,2598.7,2598.6,0.3481]
[1723883149121,0.01047143,2598.7,2598.6,2.27182]
[1723883149313,0.01047143,2598.7,2598.6,11.72902283]
[1723883149518,0.01047143,2598.7,2598.6,10.72053507]
[1723883149718,0.01047143,2598.7,2598.6,11.72902283]
[1723883150221,0.01047143,2598.7,2598.6,10.72053507]
[1723883163835,0.01047143,2598.7,2598.6,6.87253507]
[1723883165118,0.01047143,2598.7,2598.6,10.72053507]
[1723883165325,0.01047143,2598.7,2598.6,6.87253507]
[1723883165923,0.01047143,2598.7,2598.6,6.16233507]
[1723883166129,0.01047143,2598.7,2598.6,7.27233507]
[1723883170625,0.01047143,2598.7,2598.6,11.12033507]
[1723883171633,0.01047143,2598.7,2598.6,11.85333507]
[1723883173632,4.113,2599.4,2599.3,1.92321]
[1723883173832,2.29799,2599.6,2599.3,1.0991]
[1723883174139,2.29799,2599.6,2599.5,1.11]
[1723883174338,6.14519,2599.6,2599.5,1.11]
[1723883174636,6.14917994,2599.6,2599.5,1.11496001]
[1723883175036,4.22618994,2599.6,2599.5,1.11496001]
[1723883175540,6.14917994,2599.6,2599.5,1.11496001]
[1723883176236,6.14917994,2599.6,2599.5,0.00496001]
[1723883176632,9.35697994,2599.6,2599.5,0.00496001]
[1723883177134,9.36767994,2599.6,2599.5,0.00496001]
[1723883178334,7.05898994,2599.6,2599.5,1.11496001]
[1723883178534,3.85118994,2599.6,2599.5,3.03802001]
[1723883178734,3.85118994,2599.6,2599.5,1.11496001]
[1723883178940,3.85118994,2599.6,2599.5,3.03802001]
[1723883179338,3.85118994,2599.6,2599.5,1.11496001]
[1723883180031,0.00398994,2599.6,2599.5,3.03802001]
[1723883184337,0.00398994,2599.6,2599.5,1.11496001]
[1723883184742,0.00398994,2599.6,2599.5,3.03802001]
[1723883185135,0.00398994,2599.6,2599.5,1.11496001]
[1723883186742,0.00398994,2599.6,2599.5,3.03802001]
[1723883188140,0.00398994,2599.6,2599.5,7.31134633]
[1723883194338,0.00398994,2599.6,2599.5,11.15854633]
[1723883195345,0.00398994,2599.6,2599.5,13.08160633]
[1723883195646,0.00398994,2599.6,2599.5,19.09009409]
[1723883195846,7.6691,2600.4,2600.2,1.92253]
[1723883196044,7.6691,2600.4,2600.3,1.8365]
[1723883196045,3.2078,2600.4,2600.3,1.8365]
[1723883196346,1.92239,2600.4,2600.3,1.8365]
[1723883196751,1.92624926,2600.4,2600.3,1.8365]
[1723883198750,0.00385926,2600.4,2600.3,1.8365]
[1723883198954,1.92624926,2600.4,2600.3,1.8365]
[1723883199348,1.92624926,2600.4,2600.3,1.4624]
[1723883199546,1.92624926,2600.4,2600.3,1.11]
[1723883199947,0.00385926,2600.4,2600.3,1.11]
[1723883200750,1.92624926,2600.4,2600.3,1.11]
[1723883201352,0.00385926,2600.4,2600.3,1.11]
[1723883202449,0.00385926,2600.4,2600.3,1.4647]
[1723883202846,0.00385926,2600.4,2600.3,3.38717]
[1723883205349,0.00385926,2600.4,2600.3,1.4647]
[1723883208154,0.00385926,2600.4,2600.3,3.38717]
[1723883208353,0.00385926,2600.4,2600.1,0.3581]
[1723883208561,0.00385926,2600.4,2600.2,1.11]
[1723883208562,3.2078,2600.3,2600.2,1.11]
[1723883208857,0.00385926,2600.4,2600.2,1.11]
[1723883209059,0.00385926,2600.4,2600.3,0.3462]
[1723883209560,3.84945926,2600.4,2600.3,0.3462]
[1723883210053,0.00385926,2600.4,2600.3,0.3462]
[1723883211558,3.84945926,2600.4,2600.3,0.3462]
[1723883211857,0.00385926,2600.4,2600.3,0.3462]
[1723883212260,3.84945926,2600.4,2600.3,0.3462]
[1723883212561,0.00385926,2600.4,2600.3,0.3462]
[1723883213858,3.84945926,2600.4,2600.3,0.3462]
[1723883214054,0.00385926,2600.4,2600.3,0.3462]
[1723883215158,0.00385926,2600.4,2600.3,2.26867]
[1723883215350,0.00385926,2600.4,2600.3,0.3462]
[1723883215551,3.84945926,2600.4,2600.3,0.3462]
[1723883215749,0.00385926,2600.4,2600.3,0.3462]
[1723883216661,0.00385926,2600.4,2600.3,2.26867]
[1723883217065,0.00385926,2600.4,2600.3,3.36777]
[1723883217564,0.00385926,2600.4,2600.3,1.4453]
[1723883232372,1.50870765,2600.4,2600.3,1.4453]
[1723883232573,0.00385926,2600.4,2600.3,1.4453]
[1723883232775,1.50870765,2600.4,2600.3,1.4453]
[1723883236072,7.78821538,2600.4,2600.3,1.11]
[1723883236274,10.99601538,2600.4,2600.3,1.11]
[1723883237276,8.97964926,2600.4,2600.3,1.11]
[1723883237481,10.99449402,2600.4,2600.3,1.11]
[1723883237778,10.99445194,2600.4,2600.3,1.11]
[1723883237978,7.78665194,2600.4,2600.3,1.11]
[1723883238280,5.77184926,2600.4,2600.3,1.11]
[1723883238978,1.92269,2600.0,2599.8,1.00367358]
[1723883239279,3.93828236,2600.0,2599.9,1.4639]
[1723883239476,7.78468236,2600.0,2599.9,1.4639]
[1723883240376,5.76909,2600.0,2599.9,1.11]
[1723883240580,1.92291,2599.7,2599.6,1.00367358]
[1723883240877,1.92291,2599.7,2599.6,1.11]
[1723883241374,3.93879171,2599.7,2599.6,1.11]
[1723883241779,1.92291,2599.7,2599.6,1.11]
[1723883242381,3.93789607,2599.7,2599.6,1.11]
[1723883243180,1.92291,2599.7,2599.6,1.11]
[1723883243682,3.43358444,2599.7,2599.6,1.11]
[1723883243875,3.4335764,2599.7,2599.6,1.11]
[1723883247389,1.92291,2599.7,2599.6,1.11]
[1723883249092,3.4335464,2599.8,2599.6,1.11]
[1723883249595,1.92291,2599.7,2599.6,1.11]
[1723883252888,3.4335464,2599.8,2599.6,1.11]
[1723883253483,1.92291,2599.7,2599.6,1.11]
[1723883260190,1.93381,2599.7,2599.6,1.11]
[1723883267690,1.92298,2599.6,2599.5,0.35536001]
[1723883267891,1.92298,2599.6,2599.3,0.00577212]
[1723883267892,1.92313,2599.4,2599.3,0.00577212]
[1723883268098,1.92313,2599.4,2599.3,1.11577212]
[1723883268901,1.92313,2599.4,2599.3,1.11981143]
[1723883279303,3.4337964,2599.4,2599.3,1.11981143]
[1723883279806,7.2809964,2599.4,2599.3,1.11981143]
[1723883280401,9.2041264,2599.4,2599.3,0.00981143]
[1723883280599,9.70844607,2599.4,2599.3,0.00981143]
[1723883281500,7.69346,2599.4,2599.3,0.00981143]
[1723883281905,9.70787413,2599.4,2599.3,0.00981143]
[1723883282293,7.69346,2599.4,2599.3,0.00981143]
[1723883283506,10.21402184,2599.4,2599.3,0.00981143]
[1723883283903,7.69346,2599.4,2599.3,0.00981143]
[1723883284509,8.29089184,2599.4,2599.3,0.00981143]
[1723883285798,11.49869184,2599.4,2599.3,0.00981143]
[1723883285997,8.29089184,2599.4,2599.3,0.00981143]
[1723883286198,11.49869184,2599.4,2599.3,0.00981143]
[1723883286802,8.97813,2599.4,2599.3,0.00981143]
[1723883287007,11.49791261,2599.4,2599.3,0.00981143]
[1723883290009,8.29011261,2599.4,2599.3,0.00981143]
[1723883290202,11.49791261,2599.4,2599.3,0.00981143]
[1723883291601,18.42104261,2599.4,2599.3,0.00981143]
[1723883291802,1.92355,2598.9,2598.7,1.11]
[1723883292003,1.51165048,2598.8,2598.7,1.11]
[1723883292211,3.93907397,2598.9,2598.7,1.11]
[1723883292412,1.51164652,2598.8,2598.7,1.11]
[1723883292811,1.51164652,2598.8,2598.7,1.11396807]
[1723883293113,1.51164652,2598.8,2598.7,3.03761807]
[1723883293505,1.51164652,2598.8,2598.7,1.11396807]
[1723883294711,3.43522652,2598.8,2598.7,1.11396807]
[1723883295012,1.51164652,2598.8,2598.7,1.83066807]
[1723883295510,3.43519652,2598.9,2598.7,1.83066807]
[1723883296809,3.43519652,2598.9,2598.7,3.75431807]
[1723883297412,3.43519652,2598.9,2598.7,1.83066807]
[1723883302711,1.92355,2598.9,2598.7,1.83066807]
[1723883303217,3.43519652,2598.9,2598.7,1.83066807]
[1723883304412,3.44609652,2598.9,2598.7,1.83066807]
[1723883307617,1.93445,2598.9,2598.7,1.83066807]
[1723883307917,3.44609652,2598.9,2598.7,1.83066807]
[1723883316427,1.51164652,2598.8,2598.7,1.83066807]
[1723883316822,3.44609652,2598.9,2598.7,1.83066807]
[1723883317231,1.51164652,2598.8,2598.7,1.83066807]
[1723883318531,3.44609652,2598.9,2598.7,1.83066807]
[1723883318924,1.51164652,2598.8,2598.7,1.83066807]
[1723883319826,3.43522652,2598.8,2598.7,1.83066807]
[1723883320729,3.43522652,2598.8,2598.7,0.72066807]
[1723883323633,1.92358,2598.8,2598.7,0.72066807]
[1723883327133,3.93911397,2598.8,2598.7,0.72066807]
[1723883330324,2.01553397,2598.8,2598.7,0.72066807]
[1723883335541,4.44296747,2598.9,2598.7,1.72434165]
[1723883337433,2.51941747,2598.8,2598.7,1.72434165]
[1723883337935,2.51941747,2598.8,2598.7,3.64829274]
[1723883339237,2.51941747,2598.8,2598.7,1.72434165]
[1723883339855,2.51941747,2598.8,2598.7,3.64829237]
[1723883340045,2.51941747,2598.8,2598.7,3.64828006]
[1723883340359,2.51941747,2598.8,2598.7,1.72434165]
[1723883340659,2.51941747,2598.8,2598.7,3.6482979]
[1723883340957,4.44299747,2598.8,2598.7,1.00764165]
[1723883341154,10.08938,2598.8,2598.7,0.00396807]
[1723883341357,12.01296,2598.8,2598.7,0.00396807]
[1723883341751,15.02150742,2598.8,2598.7,0.00396807]
[1723883342647,12.01296,2598.8,2598.7,0.00396807]
[1723883342965,15.02150742,2598.8,2598.7,0.00396807]
[1723883343153,12.01296,2598.8,2598.7,0.00396807]
[1723883344059,15.02150742,2598.8,2598.7,0.00396807]
[1723883344256,12.01296,2598.8,2598.7,0.00396807]
[1723883345064,8.80516,2598.8,2598.7,0.00396807]
[1723883345260,12.01296,2598.8,2598.7,0.00396807]
[1723883346658,8.80516,2598.8,2598.7,0.00396807]
[1723883346860,12.01296,2598.8,2598.7,0.00396807]
[1723883347753,12.02386,2598.8,2598.7,0.00396807]
[1723883349063,8.81606,2598.8,2598.7,0.00396807]
[1723883349251,12.02386,2598.8,2598.7,0.00396807]
[1723883352961,10.10028,2598.8,2598.7,0.00396807]
[1723883355055,6.89248,2598.8,2598.7,0.00396807]
[1723883355260,10.10028,2598.8,2598.7,0.00396807]
[1723883355763,6.89248,2598.8,2598.7,0.00396807]
[1723883355970,10.10028,2598.8,2598.7,0.00396807]
[1723883357661,6.89248,2598.8,2598.7,0.00396807]
[1723883357970,10.10028,2598.8,2598.7,0.00396807]
[1723883358377,6.25228,2598.8,2598.7,0.00396807]
[1723883358567,10.10028,2598.8,2598.7,0.00396807]
[1723883359563,12.62026104,2598.8,2598.7,0.00396807]
[1723883359977,10.10028,2598.8,2598.7,0.00396807]
[1723883363473,6.89248,2598.8,2598.7,0.00396807]
[1723883364168,10.10028,2598.8,2598.7,0.00396807]
[1723883366665,6.89248,2598.8,2598.7,0.00396807]
[1723883367373,10.10028,2598.8,2598.7,0.00396807]
[1723883367565,6.89248,2598.8,2598.7,0.00396807]
[1723883367772,10.10028,2598.8,2598.7,0.00396807]
[1723883369070,6.89248,2598.8,2598.7,0.00396807]
[1723883369271,10.10028,2598.8,2598.7,0.00396807]
[1723883369778,6.89248,2598.8,2598.7,0.00396807]
[1723883369968,10.10028,2598.8,2598.7,0.00396807]
[1723883371173,12.02386,2598.8,2598.7,0.00396807]
[1723883371374,1.92372,2598.6,2598.2,0.3768]
[1723883371669,6.83668225,2598.3,2598.2,0.3768]
[1723883372074,6.24175,2598.3,2598.2,0.3768]
[1723883372369,6.24643817,2598.3,2598.2,0.00478305]
[1723883372975,8.76452772,2598.3,2598.2,0.00478305]
[1723883373173,6.24643817,2598.3,2598.2,0.00478305]
[1723883373376,8.17038817,2598.3,2598.2,0.00478305]
[1723883373875,10.68788952,2598.3,2598.2,0.00478305]
[1723883375068,10.68788952,2598.3,2598.2,0.35548305]
[1723883375465,7.48008952,2598.3,2598.2,0.35548305]
[1723883375666,10.68788952,2598.3,2598.2,0.35548305]
[1723883377178,8.17038817,2598.3,2598.2,0.35548305]
[1723883377482,10.68788952,2598.3,2598.2,0.35548305]
[1723883379782,8.17038817,2598.3,2598.2,0.35548305]
[1723883379979,10.68788952,2598.3,2598.2,0.35548305]
[1723883380374,8.17038817,2598.3,2598.2,0.35548305]
[1723883380573,10.68788952,2598.3,2598.2,0.35548305]
[1723883381478,8.17038817,2598.3,2598.2,0.35548305]
[1723883381783,8.17038817,2598.3,2598.2,0.00478305]
[1723883381987,14.53490965,2598.3,2598.2,0.00478305]
[1723883382280,12.01918817,2598.3,2598.2,0.00478305]
[1723883382978,12.01918817,2598.3,2598.0,0.00577212]
[1723883382979,3.84818,2598.1,2598.0,0.00577212]
[1723883383179,1.92439,2597.7,2597.6,0.3521]
[1723883383383,4.5432889,2597.7,2597.6,0.3521]
[1723883383576,3.03439,2597.7,2597.6,0.3521]
[1723883383984,3.03439,2597.7,2597.6,0.35482935]
[1723883385180,4.54258277,2597.7,2597.6,0.35482935]
[1723883385483,3.03439,2597.7,2597.6,0.35482935]
[1723883386174,4.54235276,2597.7,2597.6,0.35482935]
[1723883389883,3.03439,2597.7,2597.6,0.35482935]
[1723883392085,3.04529,2597.7,2597.6,0.35482935]
[1723883401488,8.81928,2597.7,2597.6,0.00272935]
[1723883401690,1.92454,2597.5,2597.4,0.00577212]
[1723883401990,8.16688,2597.5,2597.4,0.00577212]
[1723883402292,8.16688,2597.5,2597.3,0.7117]
[1723883402293,3.84922,2597.4,2597.3,0.7117]
[1723883402594,3.84922,2597.4,2597.3,0.34855253]
[1723883402595,4.22132,2597.4,2597.3,0.34855253]
[1723883402795,5.72712014,2597.4,2597.3,0.34855253]
[1723883404497,9.57752014,2597.4,2597.3,0.00355253]
[1723883405097,8.07172,2597.4,2597.3,0.00355253]
[1723883406092,10.0835852,2597.4,2597.3,0.00355253]
[1723883407786,8.07172,2597.4,2597.3,0.00355253]
[1723883408689,9.57645853,2597.4,2597.3,0.00355253]
[1723883413391,8.07172,2597.4,2597.3,0.00355253]
[1723883413597,9.57644615,2597.4,2597.3,0.00355253]
[1723883414584,12.78424615,2597.4,2597.3,0.00355253]
[1723883414790,11.27952,2597.4,2597.3,0.00355253]
[1723883414985,8.07172,2597.4,2597.3,0.00355253]
[1723883415196,11.27952,2597.4,2597.3,0.00355253]
[1723883415792,13.2913852,2597.4,2597.3,0.00355253]
[1723883417001,10.0835852,2597.4,2597.3,0.00355253]
[1723883417199,13.2913852,2597.4,2597.3,0.00355253]
[1723883424211,11.27952,2597.4,2597.3,0.00355253]
[1723883424905,8.07172,2597.4,2597.3,0.00355253]
[1723883425205,13.79489849,2597.4,2597.3,0.00355253]
[1723883427701,11.27952,2597.4,2597.3,0.00355253]
[1723883430311,8.07172,2597.4,2597.3,0.00355253]
[1723883430505,11.27952,2597.4,2597.3,0.00355253]
[1723883431910,10.90742,2597.4,2597.3,0.00355253]
[1723883432104,13.42214918,2597.4,2597.3,0.00355253]
[1723883432305,10.90742,2597.4,2597.3,0.00355253]
[1723883434524,7.05702,2597.4,2597.3,0.00355253]
[1723883435215,7.06792,2597.4,2597.3,0.00355253]
[1723883435412,5.14331,2597.4,2597.3,0.00355253]
[1723883435611,1.1209,2597.4,2597.3,3.85395253]
[1723883435913,1.1209,2597.4,2597.3,5.77863253]
[1723883436309,1.1209,2597.4,2597.3,3.85395253]
[1723883436810,2.63021078,2597.4,2597.3,3.85395253]
[1723883437913,3.04551,2597.4,2597.3,3.85395253]
[1723883438113,1.1209,2597.4,2597.3,0.00355253]
[1723883438311,3.04551,2597.4,2597.3,3.85395253]
[1723883439212,4.55519355,2597.4,2597.3,3.85395253]
[1723883440915,1.1209,2597.4,2597.3,3.85395253]
[1723883441115,2.63073366,2597.4,2597.3,3.85395253]
[1723883443213,3.04551,2597.4,2597.3,3.85395253]
[1723883444117,5.05790678,2597.4,2597.3,3.85395253]
[1723883447024,3.04551,2597.4,2597.3,3.85395253]
[1723883447524,5.05790678,2597.4,2597.3,3.85395253]
[1723883448321,3.04551,2597.4,2597.3,3.85395253]
[1723883448531,5.05790678,2597.4,2597.3,0.00355253]
[1723883448817,3.04551,2597.4,2597.3,3.85395253]
[1723883449222,5.05790678,2597.4,2597.3,3.85395253]
[1723883449423,3.04551,2597.4,2597.3,3.85395253]
[1723883450126,5.05790678,2597.4,2597.3,3.85395253]
[1723883451427,3.04551,2597.4,2597.3,3.85395253]
[1723883451725,5.05790678,2597.4,2597.3,3.85395253]
[1723883452520,5.05790678,2597.4,2597.3,0.00355253]
[1723883453022,5.05790678,2597.4,2597.3,3.85395253]
[1723883453819,3.04551,2597.4,2597.3,3.85395253]
[1723883454016,5.05790678,2597.4,2597.3,3.85395253]
[1723883455117,1.1209,2597.4,2597.3,3.85395253]
[1723883456124,1.52178424,2597.4,2597.3,5.77863253]
[1723883456325,0.0109,2597.4,2597.3,5.77863253]
[1723883459633,0.0109,2597.4,2597.3,6.78230611]
[1723883461135,0.0109,2597.4,2597.3,5.77863253]
[1723883461430,1.1209,2597.4,2597.3,5.77863253]
[1723883461730,1.11,2597.4,2597.3,5.77863253]
[1723883464236,1.51088424,2597.5,2597.3,3.85395253]
[1723883464430,0.00577212,2597.6,2597.5,1.92454]
[1723883464635,0.00577212,2597.6,2597.5,2.92821358]
[1723883464831,0.00577212,2597.6,2597.5,13.07659163]
[1723883465037,0.00577212,2597.6,2597.5,14.582102]
[1723883465629,0.00577212,2597.6,2597.5,13.07659163]
[1723883466438,0.00577212,2597.6,2597.5,12.15947994]
[1723883466736,0.00577212,2597.6,2597.5,7.15947994]
[1723883466927,1.11577212,2597.6,2597.5,5.23493994]
[1723883467241,3.04023212,2597.6,2597.5,4.2274]
[1723883467438,3.04023212,2597.6,2597.5,0.3778]
[1723883467832,4.55111636,2597.6,2597.5,0.3778]
[1723883468031,3.04023212,2597.6,2597.5,0.3778]
[1723883468238,4.55111636,2597.6,2597.5,0.3778]
[1723883469241,1.92454,2597.5,2597.4,0.725]
[1723883470041,3.04028212,2597.6,2597.4,0.725]
[1723883472340,1.92454,2597.5,2597.4,0.725]
[1723883472840,1.92454,2597.5,2597.4,4.5746]
[1723883475331,1.92454,2597.5,2597.4,0.725]
[1723883475641,3.43542424,2597.5,2597.4,4.5746]
[1723883476441,3.43542424,2597.5,2597.4,0.725]
[1723883476940,1.51088424,2597.5,2597.4,4.5746]
[1723883477145,1.92454,2597.5,2597.4,4.5746]